bitfinex/quotes_BTCUSD_20240902
["timestamp","ask_amount","ask_price","bid_price","bid_amount"]
[1725246956892,0.00818,57845.0,57844.0,1.34670675]
[1725246958317,0.00818,57845.0,57844.0,1.34870675]
[1725246961026,0.00818,57845.0,57844.0,0.18957259]
[1725246961273,0.591806,57845.0,57844.0,0.02878338]
[1725246961774,0.937557,57845.0,57844.0,0.02878338]
[1725246962248,1.283308,57845.0,57844.0,0.005]
[1725246962484,1.283308,57845.0,57843.0,0.015]
[1725246962485,0.929392,57844.0,57843.0,0.015]
[1725246963720,1.275149,57844.0,57843.0,0.01]
[1725246963971,0.929392,57844.0,57843.0,0.015]
[1725246964485,1.275149,57844.0,57843.0,0.015]
[1725246964982,0.929392,57844.0,57843.0,0.015]
[1725246965217,0.583635,57844.0,57843.0,0.015]
[1725246965460,0.929392,57844.0,57843.0,0.015]
[1725246965679,0.929392,57844.0,57843.0,0.02878565]
[1725246965921,0.929392,57844.0,57843.0,0.015]
[1725246966144,0.583635,57844.0,57843.0,0.015]
[1725246966374,0.929392,57844.0,57843.0,0.015]
[1725246966652,0.583635,57844.0,57843.0,0.015]
[1725246967378,0.929392,57844.0,57843.0,0.015]
[1725246968360,0.583635,57844.0,57843.0,0.015]
[1725246968602,0.08978,57845.0,57844.0,0.015]
[1725246968603,0.00818,57845.0,57844.0,0.015]
[1725246968833,0.00818,57845.0,57844.0,0.61424965]
[1725246969055,0.00818,57845.0,57844.0,1.05099003]
[1725246970205,0.0781,57865.0,57844.0,1.05099003]
[1725246970206,0.345627,57866.0,57860.0,0.015]
[1725246970607,0.345598,57871.0,57860.0,0.015]
[1725246970608,0.172808,57868.0,57860.0,0.34861921]
[1725246970613,0.50540786,57870.0,57860.0,0.7080272]
[1725246970815,0.0756,57874.0,57860.0,1.12346306]
[1725246971025,0.000818,57875.0,57860.0,1.61482406]
[1725246971433,0.173605,57875.0,57860.0,1.61482406]
[1725246972491,0.000818,57875.0,57860.0,1.61482406]
[1725246973006,0.000818,57875.0,57860.0,1.61682406]
[1725246973208,0.000818,57875.0,57860.0,1.61482406]
[1725246974484,0.173606,57875.0,57860.0,1.61482406]
[1725246974722,0.17279,57874.0,57860.0,1.61482406]
[1725246975186,0.173605,57875.0,57860.0,1.61482406]
[1725246975656,0.172789,57874.0,57860.0,1.61482406]
[1725246976117,0.172789,57874.0,57860.0,1.61682406]
[1725246977269,0.172792,57873.0,57860.0,1.61682406]
[1725246978609,0.172792,57873.0,57860.0,1.61482406]
[1725246978812,0.172792,57873.0,57860.0,1.5470492]
[1725246979508,0.17282,57864.0,57860.0,0.3623662]
[1725246979762,0.58065,57865.0,57860.0,0.1895362]
[1725246979969,0.172819,57864.0,57860.0,0.02874699]
[1725246980196,0.407832,57865.0,57860.0,0.02874699]
[1725246980417,0.172825,57862.0,57860.0,0.02874699]
[1725246980656,0.872317,57861.0,57860.0,0.02874699]
[1725246981135,0.872317,57861.0,57860.0,0.015]
[1725246984384,0.00818,57861.0,57860.0,0.015]
[1725246984617,0.00818,57861.0,57860.0,0.03292459]
[1725246984841,0.00818,57861.0,57860.0,0.04667158]
[1725246985057,0.181007,57861.0,57860.0,0.02874699]
[1725246985530,0.872317,57861.0,57860.0,0.02874699]
[1725246985756,1.013717,57861.0,57860.0,0.02874699]
[1725246985996,1.013717,57861.0,57860.0,0.015]
[1725246986472,0.864152,57860.0,57859.0,0.005]
[1725246986698,0.864152,57860.0,57844.0,0.36376965]
[1725246986699,0.940782,57858.0,57857.0,0.015]
[1725246986914,0.83277,57856.0,57854.0,0.015]
[1725246987188,0.659927,57856.0,57855.0,0.005]
[1725246987377,1.028612,57856.0,57855.0,0.005]
[1725246987616,0.518536,57855.0,57854.0,0.015]
[1725246987831,0.541536,57855.0,57854.0,0.015]
[1725246988277,1.232918,57855.0,57854.0,0.015]
[1725246991437,0.518536,57855.0,57854.0,0.015]
[1725246991712,0.5185,57859.0,57858.0,0.015]
[1725246991929,0.6185,57859.0,57858.0,0.015]
[1725246992142,0.172833,57859.0,57858.0,0.015]
[1725246992614,0.00818,57861.0,57860.0,0.015]
[1725246992866,0.00818,57861.0,57860.0,0.595691]
[1725246993112,0.00818,57861.0,57860.0,0.9544679]
[1725246993344,0.00818,57861.0,57860.0,1.18449141]
[1725246993840,0.00818,57861.0,57860.0,1.53015241]
[1725246994061,0.00818,57861.0,57860.0,1.53215241]
[1725247009734,0.00818,57861.0,57860.0,0.5466069]
[1725247009959,0.00818,57861.0,57860.0,0.2009459]
[1725247011379,0.00818,57861.0,57860.0,0.5466069]
[1725247012103,0.00818,57861.0,57860.0,1.2379289]
[1725247012323,0.00818,57861.0,57860.0,1.3132289]
[1725247013024,0.00818,57861.0,57860.0,1.34923581]
[1725247013679,0.00818,57861.0,57860.0,1.41513581]
[1725247014345,0.17279,57874.0,57870.0,0.172799]
[1725247014587,0.17279,57874.0,57869.0,0.16078921]
[1725247014588,0.59161384,57876.0,57873.0,0.015]
[1725247014809,0.59161384,57876.0,57875.0,0.015]
[1725247014810,0.250985,57876.0,57875.0,0.015]
[1725247015284,0.250985,57876.0,57875.0,0.0280818]
[1725247015716,0.172785,57876.0,57875.0,0.03508778]
[1725247015934,0.172785,57876.0,57875.0,0.0280818]
[1725247016187,0.079018,57878.0,57875.0,0.0280818]
[1725247016188,0.079018,57878.0,57877.0,0.015]
[1725247016434,0.079018,57878.0,57877.0,0.69412921]
[1725247016435,0.000818,57878.0,57877.0,0.69412921]
[1725247016673,0.000818,57878.0,57877.0,0.43271314]
[1725247018054,0.000818,57878.0,57877.0,0.77827314]
[1725247018311,0.000818,57878.0,57877.0,1.18973314]
[1725247018556,0.000818,57878.0,57877.0,0.84417314]
[1725247019446,0.172755,57886.0,57881.0,0.172768]
[1725247019681,0.172756,57885.0,57882.0,0.0130659]
[1725247019930,0.86378,57885.0,57884.0,0.005]
[1725247020159,0.518268,57885.0,57884.0,0.005]
[1725247020416,0.518268,57885.0,57884.0,0.015]
[1725247022976,1.00668,57885.0,57884.0,0.01]
[1725247023193,1.00668,57885.0,57884.0,0.005]
[1725247024107,1.02968,57885.0,57884.0,0.005]
[1725247025232,1.00668,57885.0,57884.0,0.01]
[1725247025504,1.00668,57885.0,57884.0,0.015]
[1725247025505,0.86378,57885.0,57884.0,0.015]
[1725247025738,0.518268,57885.0,57884.0,0.015]
[1725247025948,0.518268,57885.0,57884.0,0.02806136]
[1725247026210,0.518268,57885.0,57884.0,0.015]
[1725247026453,0.172756,57885.0,57884.0,0.015]
[1725247026905,0.172756,57885.0,57884.0,0.02806136]
[1725247027101,0.173573,57885.0,57884.0,0.02806136]
[1725247029236,0.864597,57885.0,57884.0,0.02806136]
[1725247029466,0.864597,57885.0,57884.0,0.015]
[1725247029953,1.378409,57885.0,57884.0,0.005]
[1725247032498,1.009897,57885.0,57884.0,0.015]
[1725247032721,0.173573,57885.0,57884.0,0.015]
[1725247032954,0.000817,57885.0,57884.0,0.015]
[1725247033180,0.000817,57885.0,57884.0,0.02806136]
[1725247033424,0.000817,57885.0,57884.0,0.20082036]
[1725247033651,0.000817,57885.0,57884.0,0.02806136]
[1725247039620,0.000817,57885.0,57884.0,0.02896006]
[1725247041281,0.519085,57885.0,57884.0,0.02896006]
[1725247041525,0.864597,57885.0,57884.0,0.02896006]
[1725247041746,0.864597,57885.0,57884.0,0.0158987]
[1725247043265,0.519085,57885.0,57884.0,0.0158987]
[1725247043764,0.519085,57885.0,57884.0,0.0776987]
[1725247043765,0.173573,57885.0,57884.0,0.0776987]
[1725247043972,0.173573,57885.0,57884.0,0.26351906]
[1725247043973,0.000817,57885.0,57884.0,0.26351906]
[1725247044204,0.000817,57885.0,57884.0,0.12221885]
[1725247044425,0.000817,57885.0,57884.0,0.64049585]
[1725247044640,0.000817,57885.0,57884.0,0.98601385]
[1725247045542,0.000817,57885.0,57884.0,1.06711385]
[1725247048343,0.000817,57885.0,57884.0,1.03565506]
[1725247050185,0.000817,57885.0,57884.0,0.95455506]
[1725247051345,0.000817,57885.0,57884.0,0.60903706]
[1725247054084,0.864597,57885.0,57884.0,0.02896006]
[1725247054566,1.210109,57885.0,57884.0,0.0158987]
[1725247055031,0.864597,57885.0,57884.0,0.0158987]
[1725247055947,1.210109,57885.0,57884.0,0.02396006]
[1725247056193,1.375509,57885.0,57884.0,0.0008987]
[1725247056670,1.375509,57885.0,57884.0,0.0058987]
[1725247057640,1.475509,57885.0,57884.0,0.0008987]
[1725247059924,1.52731635,57885.0,57884.0,0.0008987]
[1725247060364,1.821021,57885.0,57884.0,0.0008987]
[1725247060576,2.62582871,57885.0,57884.0,0.0008987]
[1725247060845,2.522214,57885.0,57884.0,0.0008987]
[1725247062005,2.522214,57885.0,57884.0,7e-07]
[1725247062006,2.94288902,57885.0,57884.0,7e-07]
[1725247062220,2.26796792,57885.0,57884.0,7e-07]
[1725247062658,2.39727093,57885.0,57884.0,7e-07]
[1725247062925,1.452509,57885.0,57884.0,7e-07]
[1725247063157,1.55620918,57885.0,57884.0,7e-07]
[1725247063412,1.53027069,57885.0,57884.0,7e-07]
[1725247065472,1.53025546,57885.0,57884.0,7e-07]
[1725247065908,1.55325546,57885.0,57884.0,7e-07]
[1725247066128,1.475509,57885.0,57884.0,7e-07]
[1725247066341,1.55325099,57885.0,57884.0,7e-07]
[1725247067330,1.475509,57885.0,57884.0,7e-07]
[1725247067750,1.52733185,57885.0,57884.0,7e-07]
[1725247069367,1.475509,57885.0,57884.0,7e-07]
[1725247070238,1.52732442,57885.0,57884.0,7e-07]
[1725247070455,1.475509,57885.0,57884.0,7e-07]
[1725247072387,1.52732442,57885.0,57884.0,7e-07]
[1725247072598,1.49157994,57885.0,57884.0,7e-07]
[1725247075751,1.83709194,57885.0,57884.0,7e-07]
[1725247075985,1.88889701,57885.0,57884.0,7e-07]
[1725247076222,1.88889417,57885.0,57884.0,7e-07]
[1725247076698,1.88971117,57885.0,57884.0,7e-07]
[1725247077158,1.83790894,57885.0,57884.0,7e-07]
[1725247078041,1.83990894,57885.0,57884.0,7e-07]
[1725247078275,1.83790894,57885.0,57884.0,7e-07]
[1725247078713,1.83945038,57885.0,57884.0,7e-07]
[1725247080979,1.83745038,57885.0,57884.0,7e-07]
[1725247081884,1.34953838,57885.0,57884.0,7e-07]
[1725247087427,1.45314852,57885.0,57884.0,7e-07]
[1725247087894,1.34953838,57885.0,57884.0,7e-07]
[1725247088117,1.45309638,57885.0,57884.0,7e-07]
[1725247088369,1.34953838,57885.0,57884.0,7e-07]
[1725247088601,2.30770989,57885.0,57884.0,7e-07]
[1725247088832,2.17826238,57885.0,57884.0,7e-07]
[1725247094850,2.28054351,57885.0,57884.0,7e-07]
[1725247095083,2.96390375,57885.0,57884.0,7e-07]
[1725247095323,2.96934472,57885.0,57884.0,7e-07]
[1725247095568,2.53090914,57885.0,57884.0,7e-07]
[1725247095801,2.91299339,57885.0,57884.0,7e-07]
[1725247096038,2.93966124,57885.0,57884.0,7e-07]
[1725247096987,2.35815314,57885.0,57884.0,7e-07]
[1725247097708,2.70366514,57885.0,57884.0,7e-07]
[1725247098658,2.73078699,57885.0,57884.0,7e-07]
[1725247099858,2.38527499,57885.0,57884.0,7e-07]
[1725247100786,2.07412294,57885.0,57884.0,7e-07]
[1725247101253,2.28292991,57885.0,57884.0,7e-07]
[1725247101490,2.62844191,57885.0,57884.0,7e-07]
[1725247102444,2.4676527,57885.0,57884.0,7e-07]
[1725247104494,2.62844191,57885.0,57884.0,7e-07]
[1725247104726,2.62844191,57885.0,57862.0,0.1464]
[1725247104727,1.209754,57863.0,57862.0,0.1464]
[1725247105239,1.332754,57863.0,57862.0,0.1464]
[1725247105968,2.512256,57863.0,57861.0,0.00046422]
[1725247106202,2.206629,57862.0,57861.0,0.00046422]
[1725247106685,2.552278,57862.0,57861.0,0.00046422]
[1725247107383,1.79254,57862.0,57861.0,0.00046422]
[1725247107637,1.978282,57862.0,57861.0,0.00046422]
[1725247111322,1.978282,57862.0,57861.0,0.00136402]
[1725247112947,1.67842,57862.0,57861.0,0.00136402]
[1725247113185,1.812941,57862.0,57861.0,0.00136402]
[1725247113427,1.332771,57862.0,57861.0,0.00136402]
[1725247113654,1.332771,57862.0,57861.0,0.06706402]
[1725247114140,1.332771,57862.0,57861.0,0.14756402]
[1725247114371,1.33077749,57862.0,57861.0,0.14756402]
[1725247114604,1.33042211,57862.0,57861.0,0.14756402]
[1725247115353,0.29347511,57862.0,57861.0,0.15256402]
[1725247115586,0.19090907,57871.0,57870.0,0.005]
[1725247115822,0.53650507,57871.0,57870.0,0.0657]
[1725247116050,0.88210107,57871.0,57870.0,0.0707]
[1725247116975,0.98210107,57871.0,57870.0,0.0707]
[1725247117443,1.00510107,57871.0,57870.0,0.0657]
[1725247117906,1.35069707,57871.0,57870.0,0.0657]
[1725247118143,0.63650507,57871.0,57870.0,0.0707]
[1725247118394,0.63650507,57871.0,57870.0,0.1512]
[1725247118395,0.618394,57871.0,57870.0,0.1512]
[1725247118901,0.618394,57871.0,57870.0,0.16452495]
[1725247119161,0.1,57871.0,57870.0,0.16452495]
[1725247119405,0.172796,57872.0,57871.0,0.0707]
[1725247119643,0.272796,57872.0,57871.0,0.0707]
[1725247119886,0.963975,57872.0,57871.0,0.07902268]
[1725247120135,0.963975,57872.0,57871.0,0.08402268]
[1725247120396,0.963975,57872.0,57871.0,0.0707]
[1725247122322,0.963975,57872.0,57871.0,0.08682]
[1725247122553,0.963975,57872.0,57871.0,0.1476]
[1725247125650,0.963975,57872.0,57871.0,0.16092268]
[1725247125883,0.618385,57872.0,57871.0,0.16092268]
[1725247129165,0.618385,57872.0,57871.0,0.1476]
[1725247129399,0.618385,57872.0,57871.0,0.16092268]
[1725247132657,0.76594426,57872.0,57871.0,0.16092268]
[1725247132869,0.59314926,57872.0,57871.0,0.16092268]
[1725247134657,0.1,57872.0,57871.0,0.17801495]
[1725247134880,0.17279,57874.0,57873.0,0.005]
[1725247135107,0.27279,57874.0,57873.0,0.0662]
[1725247135332,0.1,57874.0,57873.0,0.68999413]
[1725247135554,0.172777,57878.0,57874.0,0.233988]
[1725247135831,0.172777,57878.0,57875.0,0.0612]
[1725247136068,0.172783,57876.0,57875.0,0.07951359]
[1725247136298,0.963915,57876.0,57875.0,0.07451359]
[1725247136519,1.42855771,57876.0,57875.0,0.01331359]
[1725247136745,1.42855771,57876.0,57871.0,0.015]
[1725247136746,0.863975,57872.0,57871.0,0.015]
[1725247136970,0.963975,57872.0,57871.0,0.015]
[1725247139403,0.618385,57872.0,57871.0,0.03025]
[1725247139667,0.272795,57872.0,57871.0,0.077]
[1725247140126,0.618385,57872.0,57871.0,0.077]
[1725247140587,0.34554,57881.0,57880.0,0.005]
[1725247140806,0.518308,57881.0,57880.0,0.005]
[1725247141055,0.618308,57881.0,57880.0,0.005]
[1725247141272,0.618308,57881.0,57880.0,0.0812]
[1725247141724,0.618308,57881.0,57880.0,0.09450223]
[1725247142687,0.618308,57881.0,57880.0,0.1447]
[1725247142688,0.1,57881.0,57880.0,0.1447]
[1725247142914,0.173577,57884.0,57883.0,0.0671]
[1725247143136,0.519095,57884.0,57883.0,0.0671]
[1725247144230,0.619095,57884.0,57883.0,0.0671]
[1725247144676,0.273577,57884.0,57883.0,0.1435]
[1725247145137,0.273577,57884.0,57883.0,0.15679541]
[1725247147987,0.100818,57884.0,57883.0,0.15679541]
[1725247148203,0.000818,57884.0,57883.0,0.15679541]
[1725247148420,0.519095,57884.0,57883.0,0.15679541]
[1725247148631,0.273577,57884.0,57883.0,0.15679541]
[1725247150692,0.619095,57884.0,57883.0,0.15679541]
[1725247150906,0.345518,57884.0,57883.0,0.15679541]
[1725247151108,0.518277,57884.0,57883.0,0.15679541]
[1725247151805,0.518277,57884.0,57883.0,0.08039541]
[1725247152886,0.618277,57884.0,57883.0,0.08039541]
[1725247154706,0.963795,57884.0,57883.0,0.0671]
[1725247156957,0.963795,57884.0,57883.0,0.08292]
[1725247157394,0.963795,57884.0,57883.0,0.0671]
[1725247159751,0.964613,57884.0,57883.0,0.0671]
[1725247159982,0.964613,57884.0,57883.0,0.08039541]
[1725247160822,0.619095,57884.0,57883.0,0.08039541]
[1725247161996,0.619095,57884.0,57883.0,0.0671]
[1725247162434,0.619095,57884.0,57883.0,0.08039541]
[1725247165720,0.964613,57884.0,57883.0,0.01829541]
[1725247165978,0.964613,57884.0,57883.0,0.01329541]
[1725247165979,2.132838,57884.0,57883.0,0.01329541]
[1725247166224,0.172771,57880.0,57879.0,0.005]
[1725247166492,0.886855,57880.0,57879.0,0.005]
[1725247166720,1.232397,57880.0,57879.0,0.005]
[1725247168536,0.863885,57878.0,57877.0,0.015]
[1725247169103,0.863885,57878.0,57871.0,0.0008998]
[1725247169104,0.86396,57873.0,57872.0,0.005]
[1725247169578,0.863975,57872.0,57871.0,0.0058998]
[1725247169805,1.309565,57872.0,57871.0,0.0008998]
[1725247170038,1.332565,57872.0,57871.0,0.0008998]
[1725247170277,1.332565,57872.0,57871.0,0.0058998]
[1725247171207,1.332565,57872.0,57871.0,0.0008998]
[1725247172639,2.135841,57872.0,57871.0,0.0008998]
[1725247173831,2.481431,57872.0,57871.0,0.0008998]
[1725247174282,2.55917089,57872.0,57871.0,0.0008998]
[1725247174811,2.829021,57872.0,57871.0,0.0008998]
[1725247176025,2.9892346,57872.0,57871.0,0.0008998]
[1725247176280,4.13496944,57872.0,57871.0,0.0008998]
[1725247176518,4.13496936,57872.0,57871.0,0.0008998]
[1725247176986,4.02508136,57872.0,57871.0,0.0008998]
[1725247177441,3.9215146,57872.0,57871.0,0.0008998]
[1725247177898,4.02508136,57872.0,57871.0,0.0008998]
[1725247178614,3.9215146,57872.0,57871.0,0.0008998]
[1725247179318,3.99910883,57872.0,57871.0,0.0008998]
[1725247179555,3.9215146,57872.0,57871.0,0.0008998]
[1725247180252,3.99909666,57872.0,57871.0,0.0008998]
[1725247180508,3.9215146,57872.0,57871.0,0.0008998]
[1725247180756,3.1399586,57872.0,57871.0,0.0008998]
[1725247180973,2.9471632,57872.0,57871.0,0.0008998]
[1725247181211,3.1199582,57872.0,57871.0,0.0008998]
[1725247181870,3.0107142,57872.0,57871.0,0.0008998]
[1725247182426,3.0127142,57872.0,57871.0,0.0008998]
[1725247182664,3.06443061,57872.0,57871.0,0.0008998]
[1725247183131,3.0127142,57872.0,57871.0,0.0008998]
[1725247184807,3.03082535,57872.0,57871.0,0.0008998]
[1725247185255,3.02882535,57872.0,57871.0,0.0008998]
[1725247186876,3.03082535,57872.0,57871.0,0.0008998]
[1725247187088,3.00990635,57872.0,57871.0,0.0008998]
[1725247188465,3.00790635,57872.0,57871.0,0.0008998]
[1725247188695,2.19133735,57872.0,57871.0,0.0008998]
[1725247191167,2.19333735,57872.0,57871.0,0.0008998]
[1725247191384,2.19133735,57872.0,57871.0,0.0008998]
[1725247191599,2.24304469,57872.0,57871.0,0.0008998]
[1725247192318,2.19133735,57872.0,57871.0,0.0008998]
[1725247192801,2.24304469,57872.0,57871.0,0.0008998]
[1725247193015,2.19133735,57872.0,57871.0,0.0008998]
[1725247193466,2.24304469,57872.0,57871.0,0.0008998]
[1725247194378,2.19133735,57872.0,57871.0,0.0008998]
[1725247195097,2.24304469,57872.0,57871.0,0.0008998]
[1725247195328,3.66657169,57872.0,57871.0,0.0008998]
[1725247195773,3.66658334,57872.0,57871.0,0.0008998]
[1725247196200,3.6024943,57872.0,57871.0,0.0008998]
[1725247196523,3.55077531,57872.0,57871.0,0.0008998]
[1725247196726,3.60249723,57872.0,57871.0,0.0008998]
[1725247196965,3.60449723,57872.0,57871.0,0.0008998]
[1725247197214,4.16306155,57872.0,57871.0,0.0008998]
[1725247197878,4.23822457,57872.0,57871.0,0.0008998]
[1725247198117,4.16064609,57872.0,57871.0,0.0008998]
[1725247198346,4.11262833,57872.0,57871.0,0.0008998]
[1725247199560,4.45821833,57872.0,57871.0,8e-07]
[1725247199796,2.80913081,57872.0,57871.0,8e-07]
[1725247200025,2.72785109,57872.0,57871.0,8e-07]
[1725247200675,2.75497693,57872.0,57871.0,8e-07]
[1725247200910,2.75497693,57872.0,57862.0,0.0008998]
[1725247200911,1.211754,57863.0,57862.0,0.0008998]
[1725247201154,5.21645556,57863.0,57862.0,0.0008998]
[1725247201367,5.97714356,57863.0,57862.0,0.0008998]
[1725247201592,1.63932,57862.0,57861.0,8.2e-07]
[1725247201822,6.458727,57862.0,57861.0,8.2e-07]
[1725247202061,2.173669,57862.0,57861.0,8.2e-07]
[1725247204082,2.356169,57862.0,57861.0,8.2e-07]
[1725247206557,2.48547246,57862.0,57861.0,8.2e-07]
[1725247207247,2.356169,57862.0,57861.0,8.2e-07]
[1725247207515,2.173669,57862.0,57861.0,8.2e-07]
[1725247207966,2.15538572,57862.0,57861.0,8.2e-07]
[1725247208400,2.026069,57862.0,57861.0,8.2e-07]
[1725247209110,2.15540285,57862.0,57861.0,8.2e-07]
[1725247210430,2.026069,57862.0,57861.0,8.2e-07]
[1725247210663,1.80977083,57862.0,57861.0,8.2e-07]
[1725247210893,1.85502199,57862.0,57861.0,0.06190082]
[1725247211112,1.82915068,57862.0,57861.0,0.06190082]
[1725247211333,1.75154456,57862.0,57861.0,0.06190082]
[1725247212010,2.89160856,57862.0,57861.0,0.06190082]
[1725247212232,2.99508599,57862.0,57861.0,0.06190082]
[1725247212460,2.98675499,57862.0,57861.0,0.06190082]
[1725247212709,2.21585756,57862.0,57861.0,0.06190082]
[1725247213372,2.31941881,57862.0,57861.0,0.06190082]
[1725247214310,2.21585756,57862.0,57861.0,0.06190082]
[1725247214542,2.34530913,57862.0,57861.0,8.2e-07]
[1725247214750,1.90399613,57862.0,57861.0,8.2e-07]
[1725247216316,1.77454456,57862.0,57861.0,8.2e-07]
[1725247218261,1.332771,57862.0,57861.0,0.13930082]
[1725247218484,1.06780015,57862.0,57861.0,0.13930082]
[1725247218706,1.01595679,57862.0,57861.0,0.13930082]
[1725247218918,0.964122,57862.0,57861.0,0.13930082]
[1725247219358,0.43485891,57863.0,57862.0,0.005]
[1725247219359,0.000818,57863.0,57862.0,0.005]
[1725247219577,0.17364,57863.0,57862.0,0.1443]
[1725247219784,0.17364,57863.0,57862.0,0.15764313]
[1725247220442,0.519284,57863.0,57862.0,0.16764313]
[1725247220676,0.17364,57863.0,57862.0,0.16764313]
[1725247222459,0.27364,57863.0,57862.0,0.16764313]
[1725247222699,0.100818,57863.0,57862.0,0.34046713]
[1725247224481,0.100818,57863.0,57862.0,0.68611613]
[1725247224954,0.000818,57863.0,57862.0,1.13494353]
[1725247225190,0.000818,57863.0,57862.0,1.48059253]
[1725247225424,0.172789,57874.0,57872.0,0.144]
[1725247225636,0.1,57873.0,57872.0,0.144]
[1725247225867,0.172792,57873.0,57872.0,0.0783]
[1725247226095,0.172792,57873.0,57872.0,0.154]
[1725247226327,0.345569,57876.0,57873.0,0.144]
[1725247226544,0.345569,57876.0,57872.0,0.01]
[1725247226545,0.345573,57875.0,57874.0,0.144]
[1725247226774,0.172786,57875.0,57874.0,0.144]
[1725247227017,0.172786,57875.0,57874.0,0.149]
[1725247227224,0.272786,57875.0,57874.0,0.149]
[1725247227450,0.1,57875.0,57874.0,0.3549689]
[1725247227674,0.01811185,57881.0,57880.0,0.087]
[1725247227944,0.345525,57883.0,57881.0,0.1535]
[1725247227945,0.172765,57882.0,57881.0,0.1535]
[1725247228174,0.173578,57884.0,57883.0,0.1475]
[1725247228402,0.173578,57884.0,57883.0,0.1525]
[1725247229107,0.273578,57884.0,57883.0,0.1525]
[1725247229343,0.100818,57884.0,57883.0,0.16875]
[1725247229572,0.273577,57884.0,57883.0,0.1525]
[1725247230689,0.964613,57884.0,57883.0,0.1525]
[1725247232130,0.619095,57884.0,57883.0,0.1525]
[1725247232357,0.273577,57884.0,57883.0,0.16625708]
[1725247232574,0.100818,57884.0,57883.0,0.18388279]
[1725247232799,0.000818,57884.0,57883.0,0.18388279]
[1725247233061,0.000818,57884.0,57883.0,0.16625708]
[1725247233062,0.173577,57884.0,57883.0,0.16625708]
[1725247233304,0.273577,57884.0,57883.0,0.16625708]
[1725247234213,0.100818,57884.0,57883.0,0.16625708]
[1725247234435,0.000818,57884.0,57883.0,0.16625708]
[1725247234858,0.345496,57888.0,57887.0,0.0708]
[1725247234859,0.32489189,57888.0,57887.0,0.0708]
[1725247235075,0.42489189,57888.0,57887.0,0.0708]
[1725247235295,0.42489189,57888.0,57887.0,0.16064922]
[1725247235521,0.59763889,57888.0,57887.0,0.16064922]
[1725247235751,0.272747,57888.0,57887.0,0.16064922]
[1725247235955,0.1,57888.0,57887.0,0.16064922]
[1725247236175,0.345446,57897.0,57888.0,0.1569]
[1725247236176,0.172739,57891.0,57888.0,0.1569]
[1725247236412,0.172742,57890.0,57888.0,0.1569]
[1725247236638,0.172742,57890.0,57888.0,0.17064726]
[1725247236887,0.0072838,57908.0,57907.0,0.015]
[1725247237121,0.0072838,57908.0,57907.0,0.76933571]
[1725247237356,0.0072838,57908.0,57907.0,1.16018049]
[1725247237601,0.0072838,57908.0,57907.0,0.81479949]
[1725247238477,0.0072838,57908.0,57907.0,0.65463478]
[1725247238920,0.0072838,57908.0,57907.0,0.64463478]
[1725247239132,0.0072838,57908.0,57907.0,0.99001578]
[1725247239402,0.0072838,57908.0,57907.0,1.15018049]
[1725247239609,0.0082838,57908.0,57907.0,1.16418049]
[1725247239854,0.00013,57916.0,57915.0,1.218665]
[1725247240103,0.66557257,57947.0,57915.0,1.53307778]
[1725247240332,0.17261,57934.0,57933.0,0.004]
[1725247240564,0.51783,57934.0,57933.0,0.004]
[1725247240788,0.89085094,57934.0,57933.0,0.01731275]
[1725247240994,0.89085094,57934.0,57933.0,0.004]
[1725247240995,0.54563094,57934.0,57933.0,0.004]
[1725247241456,0.172619,57931.0,57930.0,0.009]
[1725247241907,0.272619,57931.0,57930.0,0.009]
[1725247242130,0.617857,57931.0,57930.0,0.009]
[1725247242353,0.99089594,57931.0,57930.0,0.009]
[1725247242797,0.272619,57931.0,57930.0,0.009]
[1725247243258,0.1,57931.0,57930.0,0.009]
[1725247243505,0.12780094,57931.0,57930.0,0.009]
[1725247243745,0.272608,57935.0,57930.0,0.02231863]
[1725247244409,0.17261,57934.0,57930.0,0.02231863]
[1725247244660,0.272613,57933.0,57930.0,0.02231863]
[1725247244869,0.617839,57933.0,57932.0,0.004]
[1725247245312,0.963065,57933.0,57932.0,0.004]
[1725247246861,0.963065,57933.0,57930.0,0.001]
[1725247246862,1.208333,57931.0,57930.0,0.001]
[1725247247090,1.505336,57931.0,57930.0,0.001]
[1725247247323,1.331333,57931.0,57930.0,0.001]
[1725247247775,0.963095,57931.0,57930.0,0.005]
[1725247248014,0.963095,57931.0,57930.0,0.1446]
[1725247248220,0.617817,57931.0,57930.0,0.1446]
[1725247249343,0.617817,57931.0,57930.0,0.1436]
[1725247249559,0.1,57931.0,57930.0,0.1486]
[1725247249779,0.275619,57931.0,57930.0,0.1486]
[1725247250000,0.103,57931.0,57930.0,0.1486]
[1725247250234,0.275619,57931.0,57930.0,0.1486]
[1725247250462,0.275619,57931.0,57930.0,0.16191863]
[1725247250675,0.103,57931.0,57930.0,0.16191863]
[1725247250894,0.003,57931.0,57930.0,0.16191863]
[1725247251165,0.103,57931.0,57930.0,0.16191863]
[1725247252252,0.003,57931.0,57930.0,0.16191863]
[1725247252475,0.103,57931.0,57930.0,0.16191863]
[1725247252693,0.003,57931.0,57930.0,0.16191863]
[1725247253117,0.272611,57934.0,57930.0,0.16191863]
[1725247253364,0.272611,57934.0,57932.0,0.005]
[1725247253558,0.270611,57934.0,57932.0,0.005]
[1725247253788,0.172613,57933.0,57932.0,0.009]
[1725247254017,0.04353065,57934.0,57932.0,0.009]
[1725247254251,0.172613,57933.0,57932.0,0.009]
[1725247254472,0.517839,57933.0,57932.0,0.009]
[1725247254931,0.863065,57933.0,57932.0,0.009]
[1725247255594,1.2302218,57933.0,57932.0,0.006]
[1725247255801,0.863095,57931.0,57930.0,0.0008976]
[1725247256041,1.208333,57931.0,57930.0,0.0058976]
[1725247256283,1.308333,57931.0,57930.0,0.0008976]
[1725247256519,1.308333,57931.0,57930.0,0.0058976]
[1725247257220,1.308333,57931.0,57930.0,0.0098976]
[1725247258537,0.963095,57931.0,57930.0,0.0138976]
[1725247260334,0.963095,57931.0,57930.0,0.1556976]
[1725247261560,1.40266772,57931.0,57930.0,0.0048976]
[1725247261792,1.79775176,57931.0,57930.0,0.0048976]